fUSD/lending_fUSD_20260621
["ID","MTS","AMOUNT","RATE_DAILY","PERIOD"]
[425948010,1782042645000,-4223.82,0.00027397,2]
[425948005,1782042645000,-500.0,0.00027397,2]
[425948045,1782042645000,-500.0,0.00027397,2]
[425948042,1782042645000,-500.0,0.00027397,2]
[425948046,1782042645000,-586.27,0.00027397,2]
[425948047,1782042645000,-500.0,0.00027397,2]
[425948043,1782042645000,-500.0,0.00027397,2]
[425948041,1782042645000,-500.0,0.00027397,2]
[425948049,1782042645000,-797.89,0.00027397,2]
[425948048,1782042645000,-500.0,0.00027397,2]
[425948044,1782042645000,-3663.8,0.00027397,2]
[425948050,1782042645000,-500.0,0.00027397,2]
[425948052,1782042645000,-6082.93,0.00027397,2]
[425948063,1782042645000,-500.0,0.00027397,2]
[425948039,1782042645000,-576.5,0.00027397,2]
[425948061,1782042645000,-691.32,0.00027397,2]
[425948054,1782042645000,-500.0,0.00027397,2]
[425948055,1782042645000,-500.0,0.00027397,2]
[425948053,1782042645000,-500.0,0.00027397,2]
[425948056,1782042645000,-500.0,0.00027397,2]
[425948058,1782042645000,-517.22218434,0.00027397,2]
[425948060,1782042645000,-500.0,0.00027397,2]
[425948057,1782042645000,-500.0,0.00027397,2]
[425948059,1782042645000,-500.0,0.00027397,2]
[425948064,1782042645000,-500.0,0.00027397,2]
[425948066,1782042645000,-320.78749321,0.00027397,2]
[425948065,1782042645000,-1039.45,0.00027397,2]
[425948009,1782042645000,-280.71103,0.00027397,2]
[425948062,1782042645000,-3536.55,0.00027397,2]
[425948040,1782042645000,-2259.71,0.00027397,2]
[425948051,1782042645000,-500.0,0.00027397,2]
[425948031,1782042645000,-500.0,0.00027397,2]
[425948038,1782042645000,-9051.47,0.00027397,2]
[425948067,1782042645000,-1741.07,0.00027397,2]
[425948003,1782042645000,-500.0,0.00027397,2]
[425948008,1782042645000,-500.0,0.00027397,2]
[425948012,1782042645000,-500.0,0.00027397,2]
[425948017,1782042645000,-500.0,0.00027397,2]
[425948015,1782042645000,-5414.02,0.00027397,2]
[425948016,1782042645000,-500.0,0.00027397,2]
[425948014,1782042645000,-500.0,0.00027397,2]
[425948022,1782042645000,-500.0,0.00027397,2]
[425948020,1782042645000,-500.0,0.00027397,2]
[425948019,1782042645000,-500.0,0.00027397,2]
[425948021,1782042645000,-500.0,0.00027397,2]
[425948018,1782042645000,-500.0,0.00027397,2]
[425948004,1782042645000,-500.0,0.00027397,2]
[425948029,1782042645000,-500.0,0.00027397,2]
[425948013,1782042645000,-500.0,0.00027397,2]
[425948032,1782042645000,-500.0,0.00027397,2]
[425948034,1782042645000,-3554.41,0.00027397,2]
[425948024,1782042645000,-500.0,0.00027397,2]
[425948027,1782042645000,-163.4867186,0.00027397,2]
[425948037,1782042645000,-554.38,0.00027397,2]
[425948026,1782042645000,-500.0,0.00027397,2]
[425948028,1782042645000,-500.0,0.00027397,2]
[425948036,1782042645000,-500.0,0.00027397,2]
[425948025,1782042645000,-500.0,0.00027397,2]
[425948023,1782042645000,-151.76766203,0.00027397,2]
[425948030,1782042645000,-619.54,0.00027397,2]
[425948105,1782042646000,-500.0,0.00027397,2]
[425948102,1782042646000,-500.0,0.00027397,2]
[425948107,1782042646000,-500.0,0.00027397,2]
[425948108,1782042646000,-500.0,0.00027397,2]
[425948109,1782042646000,-500.0,0.00027397,2]
[425948094,1782042646000,-500.0,0.00027397,2]
[425948106,1782042646000,-500.0,0.00027397,2]
[425948104,1782042646000,-500.0,0.00027397,2]
[425948100,1782042646000,-500.0,0.00027397,2]
[425948101,1782042646000,-500.0,0.00027397,2]
[425948119,1782042646000,-500.0,0.00027397,2]
[425948103,1782042646000,-500.0,0.00027397,2]
[425948117,1782042646000,-500.0,0.00027397,2]
[425948114,1782042646000,-500.0,0.00027397,2]
[425948113,1782042646000,-500.0,0.00027397,2]
[425948120,1782042646000,-500.0,0.00027397,2]
[425948112,1782042646000,-6102.89,0.00027397,2]
[425948116,1782042646000,-1045.79,0.00027397,2]
[425948111,1782042646000,-2183.7,0.00027397,2]
[425948118,1782042646000,-2562.49,0.00027397,2]
[425948115,1782042646000,-500.0,0.00027397,2]
[425948122,1782042646000,-500.0,0.00027397,2]
[425948123,1782042646000,-500.0,0.00027397,2]
[425948128,1782042646000,-1343.23,0.00027397,2]
[425948126,1782042646000,-500.0,0.00027397,2]
[425948121,1782042646000,-500.0,0.00027397,2]
[425948110,1782042646000,-500.0,0.00027397,2]
[425948089,1782042646000,-500.0,0.00027397,2]
[425948074,1782042646000,-500.0,0.00027397,2]
[425948097,1782042646000,-500.0,0.00027397,2]
[425948068,1782042646000,-500.0,0.00027397,2]
[425948071,1782042646000,-643.32,0.00027397,2]
[425948073,1782042646000,-500.0,0.00027397,2]
[425948075,1782042646000,-500.0,0.00027397,2]
[425948069,1782042646000,-500.0,0.00027397,2]
[425948070,1782042646000,-500.0,0.00027397,2]
[425948072,1782042646000,-500.0,0.00027397,2]
[425948077,1782042646000,-500.0,0.00027397,2]
[425948076,1782042646000,-500.0,0.00027397,2]
[425948087,1782042646000,-560.51,0.00027397,2]
[425948081,1782042646000,-500.0,0.00027397,2]
[425948084,1782042646000,-500.0,0.00027397,2]
[425948078,1782042646000,-500.0,0.00027397,2]
[425948082,1782042646000,-500.0,0.00027397,2]
[425948080,1782042646000,-500.0,0.00027397,2]
[425948083,1782042646000,-500.0,0.00027397,2]
[425948079,1782042646000,-500.0,0.00027397,2]
[425948085,1782042646000,-500.0,0.00027397,2]
[425948086,1782042646000,-546.13075202,0.00027397,2]
[425948088,1782042646000,-500.0,0.00027397,2]
[425948090,1782042646000,-500.0,0.00027397,2]
[425948093,1782042646000,-500.0,0.00027397,2]
[425948095,1782042646000,-500.0,0.00027397,2]
[425948096,1782042646000,-500.0,0.00027397,2]
[425948091,1782042646000,-779.95,0.00027397,2]
[425948092,1782042646000,-500.0,0.00027397,2]
[425948098,1782042646000,-500.0,0.00027397,2]
[425948099,1782042646000,-500.0,0.00027397,2]
[425948124,1782042646000,-639.45,0.00027397,2]
[425948127,1782042646000,-500.0,0.00027397,2]
[425948125,1782042646000,-1007.37,0.00027397,2]
[425948161,1782042646000,-500.0,0.00027397,2]
[425948163,1782042646000,-6716.5,0.00027397,2]
[425948164,1782042646000,-500.0,0.00027397,2]
[425948168,1782042646000,-500.0,0.00027397,2]
[425948162,1782042646000,-719.64,0.00027397,2]
[425948167,1782042646000,-500.0,0.00027397,2]
[425948166,1782042646000,-4282.25,0.00027397,2]
[425948159,1782042646000,-500.0,0.00027397,2]
[425948169,1782042646000,-500.0,0.00027397,2]
[425948165,1782042646000,-500.0,0.00027397,2]
[425948171,1782042646000,-500.0,0.00027397,2]
[425948175,1782042646000,-1064.87,0.00027397,2]
[425948170,1782042646000,-500.0,0.00027397,2]
[425948174,1782042646000,-500.0,0.00027397,2]
[425948178,1782042646000,-500.0,0.00027397,2]
[425948172,1782042646000,-4526.61,0.00027397,2]
[425948176,1782042646000,-562.70274818,0.00027397,2]
[425948180,1782042646000,-500.0,0.00027397,2]
[425948182,1782042646000,-500.0,0.00027397,2]
[425948188,1782042646000,-204.04145397,0.00027397,2]
[425948184,1782042646000,-574.64,0.00027397,2]
[425948186,1782042646000,-500.0,0.00027397,2]
[425948190,1782042646000,-500.0,0.00027397,2]
[425948194,1782042646000,-500.0,0.00027397,2]
[425948129,1782042646000,-500.0,0.00027397,2]
[425948192,1782042646000,-5276.66,0.00027397,2]
[425948173,1782042646000,-500.0,0.00027397,2]
[425948160,1782042646000,-5262.06,0.00027397,2]
[425948196,1782042646000,-515.74,0.00027397,2]
[425948154,1782042646000,-500.0,0.00027397,2]
[425948156,1782042646000,-10005.09,0.00027397,2]
[425948130,1782042646000,-535.43,0.00027397,2]
[425948131,1782042646000,-5243.54,0.00027397,2]
[425948133,1782042646000,-500.0,0.00027397,2]
[425948136,1782042646000,-500.0,0.00027397,2]
[425948145,1782042646000,-8765.19,0.00027397,2]
[425948141,1782042646000,-637.65,0.00027397,2]
[425948135,1782042646000,-4255.92,0.00027397,2]
[425948134,1782042646000,-500.0,0.00027397,2]
[425948139,1782042646000,-500.0,0.00027397,2]
[425948137,1782042646000,-500.0,0.00027397,2]
[425948144,1782042646000,-1490.2,0.00027397,2]
[425948146,1782042646000,-2815.05,0.00027397,2]
[425948132,1782042646000,-551.8,0.00027397,2]
[425948138,1782042646000,-500.0,0.00027397,2]
[425948142,1782042646000,-500.0,0.00027397,2]
[425948158,1782042646000,-4860.35,0.00027397,2]
[425948155,1782042646000,-500.0,0.00027397,2]
[425948148,1782042646000,-4969.53,0.00027397,2]
[425948152,1782042646000,-500.0,0.00027397,2]
[425948153,1782042646000,-500.0,0.00027397,2]
[425948157,1782042646000,-500.0,0.00027397,2]
[425948151,1782042646000,-500.0,0.00027397,2]
[425948150,1782042646000,-768.97,0.00027397,2]
[425948147,1782042646000,-500.0,0.00027397,2]
[425948143,1782042646000,-500.0,0.00027397,2]
[425948140,1782042646000,-500.0,0.00027397,2]
[425948149,1782042646000,-500.0,0.00027397,2]
[425948267,1782042647000,-1605.98,0.00027397,2]
[425948282,1782042647000,-500.0,0.00027397,2]
[425948280,1782042647000,-1355.35,0.00027397,2]
[425948278,1782042647000,-500.0,0.00027397,2]
[425948249,1782042647000,-500.0,0.00027397,2]
[425948263,1782042647000,-500.0,0.00027397,2]
[425948251,1782042647000,-551.78,0.00027397,2]
[425948247,1782042647000,-500.0,0.00027397,2]
[425948285,1782042647000,-500.0,0.00027397,2]
[425948265,1782042647000,-500.0,0.00027397,2]
[425948261,1782042647000,-500.0,0.00027397,2]
[425948276,1782042647000,-1000.0,0.00027397,2]
[425948286,1782042647000,-500.0,0.00027397,2]
[425948274,1782042647000,-500.0,0.00027397,2]
[425948271,1782042647000,-573.05,0.00027397,2]
[425948269,1782042647000,-500.0,0.00027397,2]
[425948287,1782042647000,-500.0,0.00027397,2]
[425948288,1782042647000,-1476.4,0.00027397,2]
[425948297,1782042647000,-500.0,0.00027397,2]
[425948295,1782042647000,-500.0,0.00027397,2]
[425948289,1782042647000,-500.0,0.00027397,2]
[425948292,1782042647000,-500.0,0.00027397,2]
[425948293,1782042647000,-500.0,0.00027397,2]
[425948259,1782042647000,-500.0,0.00027397,2]
[425948284,1782042647000,-604.46,0.00027397,2]
[425948245,1782042647000,-608.75,0.00027397,2]
[425948221,1782042647000,-500.0,0.00027397,2]
[425948255,1782042647000,-500.0,0.00027397,2]
[425948298,1782042647000,-500.0,0.00027397,2]
[425948202,1782042647000,-500.0,0.00027397,2]
[425948203,1782042647000,-561.35195207,0.00027397,2]
[425948205,1782042647000,-500.0,0.00027397,2]
[425948200,1782042647000,-500.0,0.00027397,2]
[425948198,1782042647000,-500.0,0.00027397,2]
[425948207,1782042647000,-500.0,0.00027397,2]
[425948209,1782042647000,-500.0,0.00027397,2]
[425948211,1782042647000,-500.0,0.00027397,2]
[425948213,1782042647000,-859.51,0.00027397,2]
[425948215,1782042647000,-4721.85,0.00027397,2]
[425948217,1782042647000,-506.81,0.00027397,2]
[425948219,1782042647000,-503.69,0.00027397,2]
[425948228,1782042647000,-500.0,0.00027397,2]
[425948223,1782042647000,-3659.51,0.00027397,2]
[425948224,1782042647000,-582.57,0.00027397,2]
[425948227,1782042647000,-500.0,0.00027397,2]
[425948233,1782042647000,-500.0,0.00027397,2]
[425948230,1782042647000,-378.40534981,0.00027397,2]
[425948241,1782042647000,-4874.19,0.00027397,2]
[425948237,1782042647000,-516.23285841,0.00027397,2]
[425948235,1782042647000,-500.0,0.00027397,2]
[425948239,1782042647000,-500.0,0.00027397,2]
[425948243,1782042647000,-500.0,0.00027397,2]
[425948253,1782042647000,-500.0,0.00027397,2]
[425948257,1782042647000,-544.29645383,0.00027397,2]
[425948291,1782042647000,-500.0,0.00027397,2]
[425948308,1782042647000,-500.0,0.00027397,2]
[425948296,1782042647000,-500.0,0.00027397,2]
[425948336,1782042647000,-1112.63,0.00027397,2]
[425948337,1782042647000,-9065.06,0.00027397,2]
[425948329,1782042647000,-500.0,0.00027397,2]
[425948327,1782042647000,-500.0,0.00027397,2]
[425948328,1782042647000,-926.0,0.00027397,2]
[425948330,1782042647000,-5159.49,0.00027397,2]
[425948335,1782042647000,-5803.51,0.00027397,2]
[425948334,1782042647000,-3610.73,0.00027397,2]
[425948332,1782042647000,-500.0,0.00027397,2]
[425948331,1782042647000,-334.2488488,0.00027397,2]
[425948333,1782042647000,-150.0,0.00027397,2]
[425948325,1782042647000,-500.0,0.00027397,2]
[425948338,1782042647000,-500.0,0.00027397,2]
[425948341,1782042647000,-823.61,0.00027397,2]
[425948342,1782042647000,-784.94,0.00027397,2]
[425948339,1782042647000,-7329.28,0.00027397,2]
[425948344,1782042647000,-500.0,0.00027397,2]
[425948349,1782042647000,-500.0,0.00027397,2]
[425948347,1782042647000,-500.0,0.00027397,2]
[425948348,1782042647000,-6802.2,0.00027397,2]
[425948345,1782042647000,-500.0,0.00027397,2]
[425948346,1782042647000,-557.64332669,0.00027397,2]
[425948350,1782042647000,-660.32,0.00027397,2]
[425948294,1782042647000,-9014.62,0.00027397,2]
[425948343,1782042647000,-5549.57,0.00027397,2]
[425948326,1782042647000,-716.08,0.00027397,2]
[425948340,1782042647000,-500.0,0.00027397,2]
[425948321,1782042647000,-516.81178869,0.00027397,2]
[425948320,1782042647000,-500.0,0.00027397,2]
[425948290,1782042647000,-500.0,0.00027397,2]
[425948301,1782042647000,-872.32,0.00027397,2]
[425948302,1782042647000,-500.0,0.00027397,2]
[425948300,1782042647000,-500.0,0.00027397,2]
[425948299,1782042647000,-500.0,0.00027397,2]
[425948304,1782042647000,-569.43,0.00027397,2]
[425948303,1782042647000,-796.21,0.00027397,2]
[425948307,1782042647000,-500.0,0.00027397,2]
[425948305,1782042647000,-8519.32,0.00027397,2]
[425948309,1782042647000,-598.24,0.00027397,2]
[425948351,1782042647000,-500.0,0.00027397,2]
[425948312,1782042647000,-500.0,0.00027397,2]
[425948306,1782042647000,-500.0,0.00027397,2]
[425948310,1782042647000,-6438.33,0.00027397,2]
[425948322,1782042647000,-839.09,0.00027397,2]
[425948324,1782042647000,-500.0,0.00027397,2]
[425948317,1782042647000,-1556.42,0.00027397,2]
[425948319,1782042647000,-500.0,0.00027397,2]
[425948318,1782042647000,-4544.37,0.00027397,2]
[425948323,1782042647000,-500.0,0.00027397,2]
[425948314,1782042647000,-2234.42,0.00027397,2]
[425948315,1782042647000,-1516.79,0.00027397,2]
[425948313,1782042647000,-500.0,0.00027397,2]
[425948311,1782042647000,-500.0,0.00027397,2]
[425948316,1782042647000,-718.34,0.00027397,2]
[425948399,1782042648000,-500.0,0.00027397,2]
[425948397,1782042648000,-3607.27,0.00027397,2]
[425948390,1782042648000,-500.0,0.00027397,2]
[425948392,1782042648000,-500.0,0.00027397,2]
[425948389,1782042648000,-6980.09,0.00027397,2]
[425948383,1782042648000,-500.0,0.00027397,2]
[425948381,1782042648000,-500.0,0.00027397,2]
[425948382,1782042648000,-3945.85,0.00027397,2]
[425948384,1782042648000,-505.99,0.00027397,2]
[425948386,1782042648000,-500.0,0.00027397,2]
[425948393,1782042648000,-500.0,0.00027397,2]
[425948385,1782042648000,-500.0,0.00027397,2]
[425948400,1782042648000,-6043.28,0.00027397,2]
[425948409,1782042648000,-500.0,0.00027397,2]
[425948394,1782042648000,-500.0,0.00027397,2]
[425948391,1782042648000,-7571.98,0.00027397,2]
[425948395,1782042648000,-500.0,0.00027397,2]
[425948398,1782042648000,-4352.03,0.00027397,2]
[425948402,1782042648000,-6931.15,0.00027397,2]
[425948401,1782042648000,-8419.53,0.00027397,2]
[425948403,1782042648000,-500.0,0.00027397,2]
[425948412,1782042648000,-8981.31,0.00027397,2]
[425948411,1782042648000,-500.0,0.00027397,2]
[425948405,1782042648000,-8347.78,0.00027397,2]
[425948404,1782042648000,-500.0,0.00027397,2]
[425948388,1782042648000,-500.0,0.00027397,2]
[425948396,1782042648000,-500.0,0.00027397,2]
[425948380,1782042648000,-500.0,0.00027397,2]
[425948354,1782042648000,-9362.85,0.00027397,2]
[425948379,1782042648000,-500.0,0.00027397,2]
[425948362,1782042648000,-869.68,0.00027397,2]
[425948406,1782042648000,-500.0,0.00027397,2]
[425948352,1782042648000,-500.0,0.00027397,2]
[425948361,1782042648000,-500.0,0.00027397,2]
[425948355,1782042648000,-6381.5,0.00027397,2]
[425948353,1782042648000,-5148.55,0.00027397,2]
[425948356,1782042648000,-1064.36,0.00027397,2]
[425948359,1782042648000,-828.79,0.00027397,2]
[425948357,1782042648000,-500.0,0.00027397,2]
[425948360,1782042648000,-300.0,0.00027397,2]
[425948358,1782042648000,-623.68,0.00027397,2]
[425948363,1782042648000,-10187.27,0.00027397,2]
[425948366,1782042648000,-500.0,0.00027397,2]
[425948364,1782042648000,-296.45747801,0.00027397,2]
[425948365,1782042648000,-946.6,0.00027397,2]
[425948368,1782042648000,-500.0,0.00027397,2]
[425948370,1782042648000,-500.0,0.00027397,2]
[425948367,1782042648000,-3481.99,0.00027397,2]
[425948371,1782042648000,-585.76976104,0.00027397,2]
[425948369,1782042648000,-500.0,0.00027397,2]
[425948372,1782042648000,-500.0,0.00027397,2]
[425948374,1782042648000,-566.23,0.00027397,2]
[425948375,1782042648000,-500.0,0.00027397,2]
[425948373,1782042648000,-500.0,0.00027397,2]
[425948377,1782042648000,-500.0,0.00027397,2]
[425948378,1782042648000,-500.0,0.00027397,2]
[425948387,1782042648000,-4715.32,0.00027397,2]
[425948376,1782042648000,-500.0,0.00027397,2]
[425948410,1782042648000,-500.0,0.00027397,2]
[425948407,1782042648000,-817.39,0.00027397,2]
[425948424,1782042648000,-500.0,0.00027397,2]
[425948446,1782042648000,-500.0,0.00027397,2]
[425948447,1782042648000,-560.48,0.00027397,2]
[425948445,1782042648000,-522.58757195,0.00027397,2]
[425948444,1782042648000,-500.0,0.00027397,2]
[425948450,1782042648000,-500.0,0.00027397,2]
[425948449,1782042648000,-5516.17,0.00027397,2]
[425948453,1782042648000,-501.82455083,0.00027397,2]
[425948451,1782042648000,-500.0,0.00027397,2]
[425948457,1782042648000,-500.0,0.00027397,2]
[425948456,1782042648000,-6837.07,0.00027397,2]
[425948452,1782042648000,-500.0,0.00027397,2]
[425948455,1782042648000,-8823.24,0.00027397,2]
[425948459,1782042648000,-500.0,0.00027397,2]
[425948454,1782042648000,-500.0,0.00027397,2]
[425948458,1782042648000,-604.06,0.00027397,2]
[425948460,1782042648000,-673.53,0.00027397,2]
[425948463,1782042648000,-500.0,0.00027397,2]
[425948471,1782042648000,-1244.82,0.00027397,2]
[425948465,1782042648000,-500.0,0.00027397,2]
[425948462,1782042648000,-500.0,0.00027397,2]
[425948466,1782042648000,-500.0,0.00027397,2]
[425948468,1782042648000,-639.47132117,0.00027397,2]
[425948461,1782042648000,-603.85,0.00027397,2]
[425948470,1782042648000,-509.90902738,0.00027397,2]
[425948464,1782042648000,-11148.58,0.00027397,2]
[425948408,1782042648000,-4743.48,0.00027397,2]
[425948469,1782042648000,-500.0,0.00027397,2]
[425948442,1782042648000,-5634.66,0.00027397,2]
[425948440,1782042648000,-500.0,0.00027397,2]
[425948467,1782042648000,-500.0,0.00027397,2]
[425948448,1782042648000,-500.0,0.00027397,2]
[425948416,1782042648000,-500.0,0.00027397,2]
[425948423,1782042648000,-500.0,0.00027397,2]
[425948414,1782042648000,-4082.48,0.00027397,2]
[425948419,1782042648000,-536.96,0.00027397,2]
[425948421,1782042648000,-500.0,0.00027397,2]
[425948418,1782042648000,-500.0,0.00027397,2]
[425948415,1782042648000,-500.0,0.00027397,2]
[425948441,1782042648000,-500.0,0.00027397,2]
[425948425,1782042648000,-3827.26,0.00027397,2]
[425948420,1782042648000,-500.0,0.00027397,2]
[425948417,1782042648000,-500.0,0.00027397,2]
[425948422,1782042648000,-500.0,0.00027397,2]
[425948427,1782042648000,-500.0,0.00027397,2]
[425948413,1782042648000,-500.0,0.00027397,2]
[425948426,1782042648000,-500.0,0.00027397,2]
[425948428,1782042648000,-500.0,0.00027397,2]
[425948439,1782042648000,-500.0,0.00027397,2]
[425948438,1782042648000,-8712.79,0.00027397,2]
[425948430,1782042648000,-563.62,0.00027397,2]
[425948434,1782042648000,-500.0,0.00027397,2]
[425948432,1782042648000,-500.0,0.00027397,2]
[425948443,1782042648000,-500.0,0.00027397,2]
[425948433,1782042648000,-500.0,0.00027397,2]
[425948435,1782042648000,-500.0,0.00027397,2]
[425948431,1782042648000,-500.0,0.00027397,2]
[425948437,1782042648000,-646.89,0.00027397,2]
[425948429,1782042648000,-500.0,0.00027397,2]
[425948436,1782042648000,-500.0,0.00027397,2]
[425948522,1782042649000,-500.0,0.00027397,2]
[425948514,1782042649000,-173.60998279,0.00027397,2]
[425948510,1782042649000,-4706.4,0.00027397,2]
[425948512,1782042649000,-500.0,0.00027397,2]
[425948507,1782042649000,-557.88013338,0.00027397,2]
[425948506,1782042649000,-500.0,0.00027397,2]
[425948515,1782042649000,-500.0,0.00027397,2]
[425948500,1782042649000,-500.0,0.00027397,2]
[425948504,1782042649000,-500.0,0.00027397,2]
[425948497,1782042649000,-500.0,0.00027397,2]
[425948516,1782042649000,-500.0,0.00027397,2]
[425948518,1782042649000,-500.0,0.00027397,2]
[425948528,1782042649000,-698.41,0.00027397,2]
[425948509,1782042649000,-500.0,0.00027397,2]
[425948508,1782042649000,-500.0,0.00027397,2]
[425948517,1782042649000,-500.0,0.00027397,2]
[425948513,1782042649000,-500.0,0.00027397,2]
[425948520,1782042649000,-500.0,0.00027397,2]
[425948530,1782042649000,-500.0,0.00027397,2]
[425948519,1782042649000,-1177.81,0.00027397,2]
[425948521,1782042649000,-500.0,0.00027397,2]
[425948532,1782042649000,-433.78224146,0.00027397,2]
[425948531,1782042649000,-1089.98,0.00027397,2]
[425948526,1782042649000,-3502.01,0.00027397,2]
[425948525,1782042649000,-500.0,0.00027397,2]
[425948503,1782042649000,-513.46,0.00027397,2]
[425948511,1782042649000,-500.0,0.00027397,2]
[425948499,1782042649000,-732.43,0.00027397,2]
[425948489,1782042649000,-1052.83,0.00027397,2]
[425948502,1782042649000,-500.0,0.00027397,2]
[425948473,1782042649000,-4489.89,0.00027397,2]
[425948472,1782042649000,-500.0,0.00027397,2]
[425948478,1782042649000,-13098.52,0.00027397,2]
[425948474,1782042649000,-712.4,0.00027397,2]
[425948475,1782042649000,-500.0,0.00027397,2]
[425948476,1782042649000,-500.0,0.00027397,2]
[425948477,1782042649000,-500.0,0.00027397,2]
[425948482,1782042649000,-500.0,0.00027397,2]
[425948480,1782042649000,-225.28468397,0.00027397,2]
[425948481,1782042649000,-583.26,0.00027397,2]
[425948479,1782042649000,-9170.86,0.00027397,2]
[425948483,1782042649000,-500.0,0.00027397,2]
[425948501,1782042649000,-500.0,0.00027397,2]
[425948486,1782042649000,-500.0,0.00027397,2]
[425948487,1782042649000,-500.0,0.00027397,2]
[425948485,1782042649000,-500.0,0.00027397,2]
[425948490,1782042649000,-752.63,0.00027397,2]
[425948484,1782042649000,-500.0,0.00027397,2]
[425948492,1782042649000,-500.0,0.00027397,2]
[425948493,1782042649000,-10548.55,0.00027397,2]
[425948491,1782042649000,-583.84,0.00027397,2]
[425948495,1782042649000,-500.0,0.00027397,2]
[425948505,1782042649000,-500.0,0.00027397,2]
[425948498,1782042649000,-500.0,0.00027397,2]
[425948494,1782042649000,-500.0,0.00027397,2]
[425948496,1782042649000,-7027.59,0.00027397,2]
[425948488,1782042649000,-500.0,0.00027397,2]
[425948523,1782042649000,-275.83459232,0.00027397,2]
[425948547,1782042649000,-15685.64,0.00027397,2]
[425948527,1782042649000,-500.0,0.00027397,2]
[425948565,1782042649000,-500.0,0.00027397,2]
[425948561,1782042649000,-500.0,0.00027397,2]
[425948568,1782042649000,-500.0,0.00027397,2]
[425948566,1782042649000,-500.0,0.00027397,2]
[425948567,1782042649000,-500.0,0.00027397,2]
[425948577,1782042649000,-500.0,0.00027397,2]
[425948569,1782042649000,-500.0,0.00027397,2]
[425948570,1782042649000,-500.0,0.00027397,2]
[425948575,1782042649000,-500.0,0.00027397,2]
[425948571,1782042649000,-594.9,0.00027397,2]
[425948572,1782042649000,-500.0,0.00027397,2]
[425948576,1782042649000,-904.85,0.00027397,2]
[425948562,1782042649000,-500.0,0.00027397,2]
[425948574,1782042649000,-1099.14,0.00027397,2]
[425948580,1782042649000,-500.0,0.00027397,2]
[425948579,1782042649000,-500.0,0.00027397,2]
[425948583,1782042649000,-500.0,0.00027397,2]
[425948586,1782042649000,-500.0,0.00027397,2]
[425948582,1782042649000,-500.0,0.00027397,2]
[425948589,1782042649000,-500.0,0.00027397,2]
[425948581,1782042649000,-500.0,0.00027397,2]
[425948585,1782042649000,-500.0,0.00027397,2]
[425948584,1782042649000,-500.0,0.00027397,2]
[425948588,1782042649000,-500.0,0.00027397,2]
[425948587,1782042649000,-500.0,0.00027397,2]
[425948524,1782042649000,-500.0,0.00027397,2]
[425948578,1782042649000,-3570.15,0.00027397,2]
[425948555,1782042649000,-500.0,0.00027397,2]
[425948573,1782042649000,-500.0,0.00027397,2]
[425948564,1782042649000,-500.0,0.00027397,2]